{"text_format":"3","workbook":"xlsx","n_sheets":4,"sheets":["Introduction","Critères de conception","Projet","À l'usage d'Hydro-Québec"],"not_rendered":{"images":1,"macros":1,"defined_names":3},"read":"whole","date_system":"1900"}

{"sheet":"Introduction","index":0,"n_rows":7,"n_cols":1,"rows_kept":7,"merged":[[0,0,0,7],[1,0,1,7],[2,0,2,7],[3,0,3,7],[4,0,4,7],[6,0,6,7]]}
["\nLa présente constitue le FORMULAIRE DE DEMANDE D’ÉTUDE EXPLORATOIRE.\n\nUne étude exploratoire est réalisée conformément aux obligations d’Hydro-Québec, dans ses activités de transport (ci-après \n« Le Transporteur ») en vertu des Tarifs et conditions des services de transport d’Hydro-Québec et fournit une estimation paramétrique d’un seul scénario de raccordement de centrale. Le coût de raccordement est basé sur les informations et les hypothèses de base disponibles lors de la réalisation de cette étude. L’étude exploratoire permet au client d’obtenir un ordre de grandeur concernant la faisabilité du raccordement de son projet de centrale. Les ajouts au réseau de transport principal et autres coûts liés notamment à des enjeux de stabilité sont généralement exclus de l’étude exploratoire et étudiés dans le cadre d’une étude d’intégration seulement. \n\nLes résultats contenus au rapport de cette étude ne doivent en aucun cas être interprétés comme un scénario final d’intégration. Ces résultats ne constituent pas un engagement de la part du Transporteur quant à la précision ou à l’exactitude des informations contenues dans ce rapport. \n\nPrendre note que le délai de réalisation des travaux de raccordement estimé dans l’étude exploratoire démarre à partir du moment où une Convention d’avant-projet ou une Entente de raccordement, selon le cas, est signée. Le client doit donc ajouter à ce délai, celui attribuable à la réalisation d’une étude d’intégration qui sera nécessaire lors du dépôt d’une demande officielle d’intégration (compter plus ou moins 6 mois à compter de la signature de la Convention d’étude\nd’intégration)."]
[]
["Une demande d’étude exploratoire ne constitue pas une demande d'étude d’intégration s’inscrivant dans la séquence des demandes d’études d’impact (ou « queueing ») telle qu’affichée sur le site OASIS d’Hydro-Québec.\n\nLes informations qui doivent être fournies par le client ainsi que le type de résultats qui sont transmis par le Transporteur suite à cette étude sont décrits dans les pages suivantes. \n\nToute demande doit être acheminée par courrier électronique à l’adresse suivante : \n \n"]
[{"$f":"HYPERLINK(\"mailto:teproducteursprives@hydroquebec.com\",\"teproducteursprives@hydroquebec.com\")","v":"teproducteursprives@hydroquebec.com"}]
["Des frais de 5 000 $ plus les taxes applicables sont exigibles pour chaque demande et le montant doit être versé à Hydro-Québec par virement bancaire avant le début des travaux. Plus de détails vous seront communiqués à cet effet à la réception de la demande complète.\n\nSelon les Tarifs et conditions des services de transport d’Hydro-Québec, le délai de réalisation de cette étude, dans la mesure du possible, est de six (6) semaines."]
[]
["Contenu du rapport d’étude :\n\nLe rapport d’étude émis par le Transporteur à la suite d'une étude exploratoire comporte notamment les informations suivantes :\n    \n    - Niveau de tension et type de raccordement du projet ;\n    - Identification du poste récepteur ;\n    - Estimé paramétrique du coût des travaux de raccordement, excluant les installations du client ;\n    - Délai de réalisation des travaux de raccordement sur le réseau d’Hydro-Québec.\n\nLe rapport d’étude exploratoire ne remplace pas l’étude d’intégration et demeure donc un scénario de raccordement préliminaire. La solution de raccordement, les coûts et délais de réalisation sont déterminés lors de l’étude d’intégration. "]

{"sheet":"Critères de conception","index":1,"n_rows":1,"n_cols":1,"rows_kept":1,"merged":[[0,0,38,6]]}
["INFORMATIONS SUR LE PROJET\n\nNote importante concernant l’emplacement du poste de départ\n\nL’emplacement du poste de départ de la centrale, utilisé comme point de raccordement au réseau d’Hydro-Québec, a un impact sur les coûts et le délai d’intégration de votre projet, notamment pour ce qui est du tracé de la ligne de raccordement.\n\nNous vous invitons à prendre en compte les éléments suivants au moment de faire votre demande d’étude exploratoire :\n\n− La présence de zones d’accumulation de givre (ZAG) : dans le souci d’assurer la fiabilité de son réseau, Hydro-Québec évitera autant que possible l’installation d’infrastructures de transport d’électricité en haute altitude (>600 m), notamment dans les ZAG, puisqu’elles augmentent de façon importante les risques liés à l’exploitation des lignes. Dans certains cas, l’exploitation peut même s’avérer impossible.\n\n− L’emplacement du poste : l’emplacement choisi doit permettre la construction du premier pylône face au portique d’entrée, c’est-à-dire qu’il ne doit pas y avoir d’infrastructure au sol (ni dans le sol) et que le profil de terrain naturel doit être relativement plat.\n\n− Les obstacles sur le terrain : la topographie, la présence d’obstacles et les conditions de sol entre le poste et le point de raccordement peuvent nécessiter des dérivations importantes du tracé de ligne, ce qui génère des coûts additionnels.\n\n− Les routes d’accès : la présence de chemins d’accès et d’un réseau routier existants est un élément qui facilite la construction de la ligne de raccordement.\n\n− Les contraintes environnementales : la présence d’éléments sensibles d’un point de vue environnemental (ex. : présence de milieux humides et hydriques, de territoires agricoles protégés, de faune et de flore) faisant l’objet de réglementations particulières peut nécessiter la réalisation d’inventaires sur le terrain.\n\n− L’acceptabilité sociale : l’emplacement de la centrale et de son poste doit favoriser le plus possible un accueil favorable par le milieu d’accueil quant au tracé de la future ligne de raccordement.\n\n− Le niveau de tension de la future ligne de raccordement : une ligne d’une tension de 315 kV ou plus et d’une longueur égale ou supérieure à 2 km est assujettie à la procédure d’évaluation et d’examen des impacts sur l’environnement prévue par la Loi sur la qualité de l’environnement, ce qui implique la réalisation d’une étude d’impact sur l’environnement et une démarche du Bureau d’audiences publiques sur l’environnement. Le cas échéant, il faut ajouter un délai minimal de 12 mois à l’échéancier du projet de raccordement.\n\nIl est à noter que l’estimation des coûts et des délais qui vous est fournie dans le cadre de l’étude exploratoire ne prend pas en compte les variables susmentionnées (sauf pour les lignes d’une tension de 315 kV ou plus et d’une longueur égale ou supérieure à 2 km). Les impacts de ces éléments sont pour la plupart précisés dans le cadre des travaux d’avant-projet.\n\nIl appartient au promoteur d’anticiper l’impact potentiel de ces éléments sur le scénario final de raccordement pouvant, le cas échéant, entraîner des coûts additionnels à ceux estimés, voire nécessiter le déplacement du poste de départ de la centrale.\n"]

{"sheet":"Projet","index":2,"n_rows":82,"n_cols":8,"rows_kept":82,"merged":[[0,4,1,5],[0,6,0,7],[1,6,1,7],[2,0,2,7],[3,0,3,5],[3,6,3,7],[4,0,4,5],[4,6,4,7],[5,1,5,7],[6,0,6,2],[6,4,6,5],[6,6,6,7],[7,0,7,3],[10,5,10,6],[11,1,11,7],[12,0,12,7],[13,0,13,4],[13,5,13,7],[14,0,14,4],[14,5,14,7],[15,0,15,4],[15,5,15,7],[16,0,16,4],[16,5,16,7],[17,0,17,7],[18,0,18,4],[18,5,18,7],[19,0,19,4],[19,5,19,7],[20,0,20,3],[20,4,21,4],[20,5,20,7],[21,0,21,3],[21,5,21,7],[22,0,22,3],[22,5,22,7],[23,0,23,3],[23,5,23,7],[24,0,24,7],[25,0,25,7],[26,0,26,7],[27,0,27,7],[28,0,28,7],[29,1,29,5],[31,1,31,5],[32,1,32,4],[32,5,32,6],[33,0,33,4],[33,5,33,6],[35,1,35,5],[36,3,36,5],[37,1,37,6],[38,0,38,7],[39,6,39,7],[40,1,40,7],[41,1,44,6],[46,0,46,7],[47,0,47,7],[48,0,48,3],[48,4,48,6],[49,0,49,3],[49,4,49,6],[50,2,50,3],[50,4,50,6],[51,0,51,3],[52,0,52,3],[53,0,53,3],[53,4,53,6],[54,0,54,3],[54,4,54,6],[55,0,55,3],[56,0,56,3],[57,0,57,7],[58,0,58,3],[59,0,59,3],[60,0,60,3],[61,0,61,3],[62,0,62,7],[63,0,63,3],[63,4,63,7],[64,0,64,5],[65,0,65,3],[66,0,66,3],[67,0,67,3],[68,0,68,3],[68,5,68,7],[71,0,71,7],[72,0,72,7],[73,0,73,7],[75,2,75,5],[80,1,80,7],[81,1,81,7]]}
[{"$nulls":4},"Date de la demande : ",null,"AAAA-MM-JJ"]
[]
["Section 1 – Informations générales"]
[" Nom du projet",{"$nulls":5}," Date de mise sous tension initiale° AAAA-MM-JJ"]
[]
[null,"Note : La date de mise sous tension initiale visée est la date à laquelle le promoteur souhaite voir le poste de départ énergisé dans le but de synchroniser la (les) première(s) unité(s) de production au réseau. Pour ce faire, tous les travaux doivent être complétés, tant du côté du Transporteur que du côté du promoteur. Si le Transporteur n’est pas en mesure de respecter la date demandée compte tenu des travaux à réaliser, la date la plus hâtive sera indiquée dans le rapport d’étude."]
[" Emplacement du projet",{"$nulls":3}," Latitude (ex. : 45º30'29,88\"N)",null," Longitude (ex. : 73º33'44,64\"O)"]
[" Poste de départ ou de sectionnement",{"$nulls":4},"Degrés",null,"Degrés"]
[null,"Latitude :",{"$f":"IF(E8=\"\",\"Veuillez compléter les informations à droite\",_xlfn.CONCAT(E8,\"º\",E9,\"'\",E10,\"\"\"N\"))","v":"Veuillez compléter les informations à droite"},null,null,"Minutes",null,"Minutes"]
[null,"Longitude : ",{"$f":"IF(G8=\"\",\"Veuillez compléter les informations à droite\",_xlfn.CONCAT(G8,\"º\",G9,\"'\",G10,\"\"\"O\"))","v":"Veuillez compléter les informations à droite"},null,null,"Secondes",null,"Secondes"]
[{"$nulls":4},"Région administrative","Sélectionnez"]
[null,"Joindre une carte ou une série de cartes en format PDF indiquant la localisation du projet, la délimitation du site et les coordonnées géoréférencées du poste de départ (ou poste de sectionnement) de la centrale dans le courriel au moment de l'envoi de la demande. "]
["Section 2 - Personnes ressources - Personne désignée aux fins de communication avec le Transporteur "]
[" Prénom et nom",{"$nulls":4},"Téléphone"]
[]
["Titre",{"$nulls":4},"Courriel"]
[]
["Section 3 - Informations relatives à la facturation "]
["Nom de l'entreprise (producteur)",{"$nulls":4},"Nom du projet à facturer (si requis)"]
[]
["Numéro de client Hydro-Québec",{"$nulls":3},"OU","Numéro d'entreprise (NEQ ou NE)1 "]
[]
["Facturation à l'attention de",{"$nulls":3},"Téléphone","Courriel"]
[]
[" Adresse  de facturation (n°, rue, étage, ville, province, pays, code postal)"]
[]
[" 1 Numéro que l'on retrouve au registre des entreprises du Québec (NEQ) ou du Canada (NE)"]
["Section 4- Point de livraison de la production "]
[" Indiquer le point de livraison de l’électricité de la centrale :"]
[null,"L’électricité produite par la centrale sera livrée sur le réseau aux fins d’alimentation de la charge locale d’Hydro-Québec :  ",{"$nulls":4},"Sélectionnez"]
[]
[null,"-Si oui, le projet faisant l'objet de l'étude s'inscrit-il dans le cadre d'un appel d'offres ou d'un programme d'achat d'électricité (PAÉ) d'Hydro-Québec ?",{"$nulls":4},"Sélectionnez"]
[null,"Le cas échéant, veuillez indiquer le numéro de l'appel d'offres ou du PAÉ :"]
["Veuillez indiquer le numéro de la demande d'orientation technique (DOT) associée:"]
[]
[null,"- Si vous avez répondu « Non » à la première question, veuillez préciser si le projet faisant l’objet de l’étude est associé à une demande de service de transport point à point en cours :",{"$nulls":4},"Sélectionnez"]
[{"$nulls":3},"Si oui, inscrire le numéro OASIS de la demande « T » :"]
[null,"Si votre demande est associée à une demande de service de transport à venir, veuillez joindre une carte en format PDF indiquant le/les point(s) de livraison souhaités pour l’électricité produite par la centrale, avec la répartition des MW le cas échéant."]
["Autre option ou commentaires concernant le point de livraison de la production :"]
{"$rows_empty":8}
["Section 5 - Caractéristiques des installations de production"]
["Type de centrale",{"$nulls":3},"Sélectionnez le type de centrale"]
["Type de production",{"$nulls":3},"Sélectionnez le type de production"]
[null,null,"Si Autre, veuillez spécifier"]
["Puissance installée à la centrale",{"$nulls":4},"MW"]
["Nombre d’unité de production",{"$nulls":4},"Unité"]
["Nom du ou des manufacturiers"]
["Numéro du ou des modèles"]
["Puissance nominale de chaque unité vue du réseau en courant alternatif ",{"$nulls":4},"MW"]
["Longueur estimée du réseau collecteur (si applicable)",{"$nulls":4},"km"]
["Section 6 - Caractéristique de la puissance injectée au réseau"]
["Puissance maximale à transporter 2",{"$nulls":4},"MW"]
["Facteur de puissance capacitif  de la centrale",{"$nulls":4},"p.u."]
["Facteur de puissance inductif  de la centrale",{"$nulls":4},"p.u."]
["Facteur d'utilisation (F.U.) de la centrale",{"$nulls":4},"%"]
["2 La puissance maximale à transporter correspond à la puissance installée à la centrale qui transitera sur le réseau d'Hydro-Québec. De plus, c’est la puissance qui sera utilisée pour la planification et la réalisation du projet de raccordement électrique de la centrale au réseau."]
["Section 7 - Système de stockage d'énergie",{"$nulls":3},{"$f":"IF(E49=\"Système de stockage d'énergie*\",\"*Informations complémentaires à fournir dans cette section\",\"\")","v":""}]
["La centrale est-elle équipée d’un système de stockage complémentaire aux équipements de production?",{"$nulls":5},"Sélectionnez"]
["Puissance de l’équipement de stockage",{"$nulls":4},"MW"]
["Capacité de l’équipement de stockage ",{"$nulls":4},"MWh"]
["Puissance de recharge maximale (si rechargé à partir du réseau)",{"$nulls":4},"MW"]
["Nombre d'unités "]
[]
[]
["Le Transporteur se réserve le droit d’exiger du client toute autre information complémentaire qu’elle jugera pertinente à son analyse. "]
["Les équipements de production ainsi que de stockage d'énergie utilisés doivent respecter les normes et exigences techniques pour le raccordement au réseau disponibles sur le site internet d'Hydro-Québec à :"]
["https://www.hydroquebec.com/transenergie/fr/raccordement-reseau.html"]
[]
[null,null,"Je confirme avoir pris connaissance de toutes les informations contenues dans les onglets « Introduction », « Critères de conception » et « Projet » : ",{"$nulls":3},"Sélectionnez"]
[]
[]
[]
[]
[null,"Note : Si vous utilisez une messagerie autre qu'Outlook, vous pouvez nous faire parvenir votre demande à l'adresse suivante : "]
[null,"teproducteursprives@hydroquebec.com"]

{"sheet":"À l'usage d'Hydro-Québec","index":3,"n_rows":53,"n_cols":9,"rows_kept":53,"hidden":true}
["À l'usage d'Hydro-Québec"]
[]
[]
[null,"Date de\nréception","Demandeur","Nom du projet","Type de\ncentrale","Capacité\n(MW)","Région"]
["COM Suivi",{"$f":"Projet!G2","v":"00:00:00"},{"$f":"Projet!A20","v":0},{"$f":"Projet!A5","v":0},{"$f":"Projet!E49","v":"Sélectionnez le type de centrale"},{"$f":"Projet!E59","v":0},{"$f":"Projet!F11","v":"Sélectionnez"}]
[]
["COM Facturation",{"$f":"Projet!A19","v":"Nom de l'entreprise (producteur)"},{"$f":"Projet!A20","v":0}]
[null,{"$f":"Projet!A21","v":"Numéro de client Hydro-Québec"},{"$f":"Projet!A22","v":0}]
[null,{"$f":"Projet!F21","v":"Numéro d'entreprise (NEQ ou NE)1 "},{"$f":"Projet!F22","v":0}]
[null,{"$f":"Projet!F19","v":"Nom du projet à facturer (si requis)"},{"$f":"Projet!F20","v":0}]
[null,{"$f":"Projet!A23","v":"Facturation à l'attention de"},{"$f":"Projet!A24","v":0}]
[null,{"$f":"Projet!E23","v":"Téléphone"},{"$f":"Projet!F24","v":0}]
[null,"Adresse de facturation",{"$f":"Projet!A26","v":0}]
[]
[null,"Personne ressource",{"$f":"Projet!A15","v":0}]
[null,{"$f":"Projet!A16","v":"Titre"},{"$f":"Projet!A17","v":0}]
[null,{"$f":"Projet!F14","v":"Téléphone"},{"$f":"Projet!F15","v":0}]
[null,{"$f":"Projet!F16","v":"Courriel"},{"$f":"Projet!F17","v":0}]
[]
[]
[null,"Nom du projet","Promoteur / Demandeur","Pmax à transporter (MW)","P installée (MW)","N/A","MSTI demandée","Type","Manufacturier"]
["CRP",{"$f":"Projet!A5","v":"00:00:00"},{"$f":"Projet!A20","v":0},{"$f":"Projet!E59","v":0},{"$f":"Projet!E52","v":0},null,{"$f":"Projet!G5","v":"00:00:00"},{"$f":"Projet!E49","v":"Sélectionnez le type de centrale"},{"$f":"Projet!E54","v":0}]
[]
[null,"ZRA"]
[null,{"$f":"Projet!F11","v":"Sélectionnez"}]
[]
[null,"Latitude","Latitude","Longitude","Longitude"]
[null,{"$f":"Projet!C9","v":"Veuillez compléter les informations à droite"},{"$f":"Projet!E8+((Projet!E9)/60)+((Projet!E10)/3600)","v":{"v":0,"d":"0.0000000"}},{"$f":"Projet!C10","v":"Veuillez compléter les informations à droite"},{"$f":"Projet!G8+((Projet!G9)/60)+((Projet!G10)/3600)","v":{"v":0,"d":"0.0000000"}}]
[]
[]
[]
[]
[]
[null,"Région","Type de centrale",null,"Type de production"]
[null,"Sélectionnez","Sélectionnez le type de centrale",null,"Sélectionnez le type de production"]
[null,"Bas-St-Laurent","Hydraulique",null,"Synchrone"]
[null,"Saguenay-Lac-St-Jean","Thermique",null,"Asynchrone"]
[null,"Capitale-Nationale","Éolienne",null,"Raccordée au moyen d'onduleurs"]
[null,"Mauricie","Solaire / Photovoltaïque",null,"Autre"]
[null,"Estrie","Système de stockage d'énergie*"]
[null,"Montréal","Autre"]
[null,"Outaouais"]
[null,"Abitibi-Témiscamingue"]
[null,"Côte-Nord"]
[null,"Nord-du-Québec"]
[null,"Gaspésie-Îles-de-la-Madeleine"]
[null,"Chaudière-Appalaches"]
[null,"Laval"]
[null,"Lanaudière"]
[null,"Laurentides"]
[null,"Montérégie"]
[null,"Centre-du-Québec"]
[null,"Autres"]